[Event "*** SCC Grand Prix: Titled Tuesday Blitz"]
[Site "Chess.com"]
[Date "2020.06.02"]
[Round "8"]
[White "j_coca"]
[Black "HouseOfDurin"]
[Result "1-0"]
[WhiteElo "2167"]
[BlackElo "1973"]
[TimeControl "180+1"]
[EndTime "11:37:00 PDT"]
[Termination "j_coca won by resignation"]

1. f4 {[%clk 0:02:59]} 1... c5 {[%clk 0:02:59.8]} 2. Nf3 {[%clk 0:02:58.7]} 2...
d5 {[%clk 0:03:00.4]} 3. e3 {[%clk 0:02:57]} 3... d4 {[%clk 0:03:00.6]} 4. e4
{[%clk 0:02:56.4]} 4... Nc6 {[%clk 0:02:59.9]} 5. Bc4 {[%clk 0:02:49.4]} 5... h6
{[%clk 0:02:55.2]} 6. d3 {[%clk 0:02:47.8]} 6... g6 {[%clk 0:02:55.1]} 7. c3
{[%clk 0:02:47.7]} 7... Bg7 {[%clk 0:02:55.5]} 8. O-O {[%clk 0:02:46.4]} 8... e6
{[%clk 0:02:51]} 9. Qc2 {[%clk 0:02:43.9]} 9... Nge7 {[%clk 0:02:49.9]} 10. Nbd2
{[%clk 0:02:37.7]} 10... a6 {[%clk 0:02:47.1]} 11. a3 {[%clk 0:02:36.6]} 11...
b5 {[%clk 0:02:26.8]} 12. Ba2 {[%clk 0:02:35.9]} 12... Qb6 {[%clk 0:02:24.9]}
13. c4 {[%clk 0:02:34.7]} 13... b4 {[%clk 0:02:15.8]} 14. a4 {[%clk 0:02:34.3]}
14... e5 {[%clk 0:02:02.7]} 15. fxe5 {[%clk 0:02:32.5]} 15... Nxe5 {[%clk
0:02:03.6]} 16. Nxe5 {[%clk 0:02:32.5]} 16... Bxe5 {[%clk 0:02:04]} 17. Nf3
{[%clk 0:02:32.9]} 17... Bg7 {[%clk 0:01:58.8]} 18. Bb3 {[%clk 0:02:32.5]} 18...
a5 {[%clk 0:01:52]} 19. Qf2 {[%clk 0:02:30]} 19... O-O {[%clk 0:01:52.4]} 20.
Qh4 {[%clk 0:02:29.2]} 20... g5 {[%clk 0:01:50.3]} 21. Qg3 {[%clk 0:02:23.5]}
21... f5 {[%clk 0:01:44.1]} 22. Bc2 {[%clk 0:02:19.5]} 22... f4 {[%clk 0:01:40]}
23. Qe1 {[%clk 0:02:17.5]} 23... Ng6 {[%clk 0:01:40.3]} 24. b3 {[%clk
0:02:16.7]} 24... Bg4 {[%clk 0:01:37.4]} 25. Ra2 {[%clk 0:02:15.6]} 25... Bxf3
{[%clk 0:01:35.9]} 26. gxf3 {[%clk 0:02:14.5]} 26... Ne5 {[%clk 0:01:36.4]} 27.
Rf2 {[%clk 0:02:08.2]} 27... Kf7 {[%clk 0:01:33.6]} 28. Qf1 {[%clk 0:02:08.2]}
28... Qe6 {[%clk 0:01:28.9]} 29. Bd1 {[%clk 0:02:07.7]} 29... Ke7 {[%clk
0:01:27.2]} 30. Be2 {[%clk 0:02:03.7]} 30... Bf6 {[%clk 0:01:23.6]} 31. Qd1
{[%clk 0:02:03.6]} 31... Rh8 {[%clk 0:01:22]} 32. Bf1 {[%clk 0:02:02.8]} 32...
Rag8 {[%clk 0:01:22.3]} 33. Rg2 {[%clk 0:02:03]} 33... h5 {[%clk 0:01:16.9]} 34.
Kh1 {[%clk 0:02:02.1]} 34... g4 {[%clk 0:01:08.9]} 35. fxg4 {[%clk 0:02:00]}
35... hxg4 {[%clk 0:01:08.1]} 36. Bxf4 {[%clk 0:02:00.4]} 36... Rh3 {[%clk
0:00:41]} 37. Bg3 {[%clk 0:01:45.9]} 37... Rgh8 {[%clk 0:00:37.5]} 38. Raf2
{[%clk 0:01:44.6]} 38... Bh4 {[%clk 0:00:30.2]} 39. Bxh4+ {[%clk 0:01:40.9]}
39... R3xh4 {[%clk 0:00:24.5]} 40. Kg1 {[%clk 0:01:40.2]} 40... Nf3+ {[%clk
0:00:22.8]} 41. Rxf3 {[%clk 0:01:40]} 41... gxf3 {[%clk 0:00:22.8]} 42. Qxf3
{[%clk 0:01:40.9]} 42... Rf8 {[%clk 0:00:17.5]} 43. Qg3 {[%clk 0:01:40]} 43...
Rhf4 {[%clk 0:00:16.5]} 44. Qg5+ {[%clk 0:01:37.9]} 44... Kd7 {[%clk 0:00:14.2]}
45. Be2 {[%clk 0:01:36.7]} 45... Qe7 {[%clk 0:00:11.5]} 46. Qd5+ {[%clk
0:01:33.7]} 46... Kc7 {[%clk 0:00:11.6]} 47. h3 {[%clk 0:01:32.8]} 47... R8f7
{[%clk 0:00:11]} 48. Rg6 {[%clk 0:01:25.5]} 48... R4f6 {[%clk 0:00:10.3]} 49.
Rxf6 {[%clk 0:01:20]} 49... Rxf6 {[%clk 0:00:11.2]} 50. Bg4 {[%clk 0:01:13.1]}
50... Rd6 {[%clk 0:00:08.7]} 51. Qxc5+ {[%clk 0:01:13]} 51... Kb8 {[%clk
0:00:05.7]} 52. Qxa5 {[%clk 0:01:10.4]} 52... Qf6 {[%clk 0:00:04.5]} 53. Qxb4+
{[%clk 0:01:07.9]} 53... Kc7 {[%clk 0:00:04]} 54. Qc5+ {[%clk 0:01:06.9]} 54...
Kd8 {[%clk 0:00:02.3]} 55. e5 {[%clk 0:01:04.3]} 55... Qf4 {[%clk 0:00:01.3]}
56. Qxd6+ {[%clk 0:01:04.1]} 56... Ke8 {[%clk 0:00:01.9]} 57. Qd7+ {[%clk
0:01:04.5]} 57... Kf8 {[%clk 0:00:02]} 58. Qf5+ {[%clk 0:01:05.4]} 58... Qxf5
{[%clk 0:00:01.3]} 59. Bxf5 {[%clk 0:01:06.3]} 59... Ke7 {[%clk 0:00:01.6]} 60.
e6 {[%clk 0:01:07.2]} 60... Ke8 {[%clk 0:00:02.1]} 61. Kg2 {[%clk 0:01:08.1]}
61... Kf8 {[%clk 0:00:03]} 62. Kf3 {[%clk 0:01:08.8]} 62... Ke8 {[%clk
0:00:03.9]} 63. Ke4 {[%clk 0:01:09.7]} 63... Ke7 {[%clk 0:00:04.6]} 64. Kxd4
{[%clk 0:01:10.6]} 64... Ke8 {[%clk 0:00:04.6]} 65. Ke5 {[%clk 0:01:11.5]} 65...
Kf8 {[%clk 0:00:05.2]} 66. d4 {[%clk 0:01:12.3]} 66... Ke8 {[%clk 0:00:06.1]}
67. d5 {[%clk 0:01:13.2]} 67... Kd8 {[%clk 0:00:06]} 68. d6 {[%clk 0:01:14.1]}
68... Ke8 {[%clk 0:00:04.9]} 69. Kf6 {[%clk 0:01:15]} 69... Kf8 {[%clk
0:00:04.9]} 70. d7 {[%clk 0:01:14.5]} 1-0

[Event "*** SCC Grand Prix: Titled Tuesday Blitz"]
[Site "Chess.com"]
[Date "2020.06.02"]
[Round "8"]
[White "Konovalova_Vera"]
[Black "PattyCastillo"]
[Result "1-0"]
[WhiteElo "2147"]
[BlackElo "1908"]
[TimeControl "180+1"]
[EndTime "11:37:01 PDT"]
[Termination "Konovalova_Vera won on time"]

1. d4 {[%clk 0:02:56.4]} 1... d5 {[%clk 0:02:59.4]} 2. Nf3 {[%clk 0:02:54.2]}
2... Nf6 {[%clk 0:02:57.4]} 3. e3 {[%clk 0:02:53.9]} 3... c6 {[%clk 0:02:52.8]}
4. Bd3 {[%clk 0:02:53.1]} 4... Bg4 {[%clk 0:02:51.7]} 5. b3 {[%clk 0:02:53.1]}
5... e6 {[%clk 0:02:49.6]} 6. Bb2 {[%clk 0:02:53.3]} 6... Be7 {[%clk 0:02:47.9]}
7. Nbd2 {[%clk 0:02:53.5]} 7... Nbd7 {[%clk 0:02:47.2]} 8. O-O {[%clk
0:02:53.7]} 8... O-O {[%clk 0:02:47]} 9. Be2 {[%clk 0:02:53.2]} 9... a5 {[%clk
0:02:42.1]} 10. a4 {[%clk 0:02:51.8]} 10... c5 {[%clk 0:02:40.9]} 11. h3 {[%clk
0:02:48.2]} 11... Bh5 {[%clk 0:02:37.5]} 12. Ne5 {[%clk 0:02:46.1]} 12... Bxe2
{[%clk 0:02:37]} 13. Qxe2 {[%clk 0:02:43.1]} 13... cxd4 {[%clk 0:02:36.8]} 14.
exd4 {[%clk 0:02:42.5]} 14... Qc7 {[%clk 0:02:33.6]} 15. c4 {[%clk 0:02:35]}
15... Rfe8 {[%clk 0:02:20.6]} 16. Rac1 {[%clk 0:02:31.7]} 16... Qb8 {[%clk
0:02:18]} 17. Qf3 {[%clk 0:02:23.1]} 17... Ra6 {[%clk 0:02:11.2]} 18. Nxd7
{[%clk 0:02:19.9]} 18... Nxd7 {[%clk 0:02:07.5]} 19. cxd5 {[%clk 0:02:19.8]}
19... exd5 {[%clk 0:01:54.8]} 20. Qxd5 {[%clk 0:02:19.2]} 20... Rd6 {[%clk
0:01:45.1]} 21. Qf3 {[%clk 0:02:13.7]} 21... Bf6 {[%clk 0:01:42.1]} 22. Ne4
{[%clk 0:02:08.3]} 22... Rde6 {[%clk 0:01:40.4]} 23. Nc5 {[%clk 0:02:00]} 23...
Nxc5 {[%clk 0:01:39]} 24. Rxc5 {[%clk 0:01:59.2]} 24... b6 {[%clk 0:01:32]} 25.
Rc6 {[%clk 0:01:55.9]} 25... Re2 {[%clk 0:01:18.7]} 26. Bc1 {[%clk 0:01:42.6]}
26... Bxd4 {[%clk 0:01:14.9]} 27. Be3 {[%clk 0:01:24.3]} 27... R2xe3 {[%clk
0:01:00.7]} 28. fxe3 {[%clk 0:01:23.3]} 28... Bxe3+ {[%clk 0:01:01.2]} 29. Kh1
{[%clk 0:01:15.9]} 29... f6 {[%clk 0:00:36.3]} 30. Re1 {[%clk 0:01:07]} 30...
Bc5 {[%clk 0:00:33.7]} 31. Qd5+ {[%clk 0:00:56.6]} 31... Kh8 {[%clk 0:00:28.1]}
32. Rxe8+ {[%clk 0:00:49.6]} 32... Qxe8 {[%clk 0:00:27.3]} 33. Re6 {[%clk
0:00:49.2]} 33... Qc8 {[%clk 0:00:17.4]} 34. Qe4 {[%clk 0:00:45.5]} 34... Bf8
{[%clk 0:00:14.3]} 35. Re8 {[%clk 0:00:33.1]} 35... Qc1+ {[%clk 0:00:13.7]} 36.
Kh2 {[%clk 0:00:32.9]} 36... Qc7+ {[%clk 0:00:13.3]} 37. g3 {[%clk 0:00:32.3]}
37... Qc5 {[%clk 0:00:10.6]} 38. Qe2 {[%clk 0:00:21.4]} 38... h6 {[%clk
0:00:09.7]} 39. Re4 {[%clk 0:00:17.6]} 39... Qa3 {[%clk 0:00:06.4]} 40. Re3
{[%clk 0:00:16.5]} 40... Qc5 {[%clk 0:00:05.3]} 41. Rd3 {[%clk 0:00:16]} 41...
Kg8 {[%clk 0:00:04.5]} 42. Rd8 {[%clk 0:00:14.6]} 42... Qb4 {[%clk 0:00:02.6]}
43. Rd7 {[%clk 0:00:11.5]} 43... Qa3 {[%clk 0:00:01.5]} 44. Rd3 {[%clk
0:00:11.1]} 44... Qc5 {[%clk 0:00:01.3]} 45. Qd2 {[%clk 0:00:10.3]} 1-0

[Event "*** SCC Grand Prix: Titled Tuesday Blitz"]
[Site "Chess.com"]
[Date "2020.06.02"]
[Round "8"]
[White "vanImpe"]
[Black "Campelov"]
[Result "1-0"]
[WhiteElo "2336"]
[BlackElo "2166"]
[TimeControl "180+1"]
[EndTime "11:37:02 PDT"]
[Termination "vanImpe won on time"]

1. g3 {[%clk 0:03:00.9]} 1... g6 {[%clk 0:02:59.4]} 2. Bg2 {[%clk 0:03:01.4]}
2... Bg7 {[%clk 0:02:55.7]} 3. d4 {[%clk 0:03:01.8]} 3... d6 {[%clk 0:02:55.8]}
4. e4 {[%clk 0:03:02.3]} 4... c5 {[%clk 0:02:55.1]} 5. c3 {[%clk 0:03:01.1]}
5... cxd4 {[%clk 0:02:53.4]} 6. cxd4 {[%clk 0:03:01.5]} 6... Nc6 {[%clk
0:02:53.2]} 7. Ne2 {[%clk 0:03:00.7]} 7... h5 {[%clk 0:02:47.6]} 8. h3 {[%clk
0:02:59.6]} 8... Bd7 {[%clk 0:02:46.3]} 9. Nbc3 {[%clk 0:02:59]} 9... Rc8 {[%clk
0:02:43.7]} 10. Be3 {[%clk 0:02:58.9]} 10... a6 {[%clk 0:02:43.2]} 11. a4 {[%clk
0:02:57.6]} 11... e6 {[%clk 0:02:38.4]} 12. O-O {[%clk 0:02:53.7]} 12... Nge7
{[%clk 0:02:38]} 13. d5 {[%clk 0:02:48.1]} 13... exd5 {[%clk 0:02:00.2]} 14.
Nxd5 {[%clk 0:02:44.3]} 14... Nxd5 {[%clk 0:01:57.7]} 15. Qxd5 {[%clk
0:02:39.2]} 15... Be6 {[%clk 0:01:46.9]} 16. Qd2 {[%clk 0:02:31.9]} 16... O-O
{[%clk 0:01:43.9]} 17. Nf4 {[%clk 0:02:29.6]} 17... Bc4 {[%clk 0:01:38]} 18.
Rfd1 {[%clk 0:02:27.9]} 18... Qf6 {[%clk 0:01:13.5]} 19. Qxd6 {[%clk 0:02:16.3]}
19... Qxd6 {[%clk 0:01:08.1]} 20. Rxd6 {[%clk 0:02:16.3]} 20... Bxb2 {[%clk
0:01:09]} 21. Rb1 {[%clk 0:02:16.4]} 21... Be5 {[%clk 0:01:03.4]} 22. Rd7 {[%clk
0:02:16.5]} 22... b5 {[%clk 0:01:03.2]} 23. axb5 {[%clk 0:02:16.9]} 23... axb5
{[%clk 0:01:01.9]} 24. Nd3 {[%clk 0:01:59]} 24... Rfd8 {[%clk 0:00:46.4]} 25.
Nxe5 {[%clk 0:01:57.1]} 25... Nxe5 {[%clk 0:00:47.3]} 26. Rxd8+ {[%clk
0:01:54.6]} 26... Rxd8 {[%clk 0:00:48.2]} 27. Bg5 {[%clk 0:01:47.2]} 27... Rc8
{[%clk 0:00:29.7]} 28. Bf6 {[%clk 0:01:44.6]} 28... Nd7 {[%clk 0:00:29.6]} 29.
Bd4 {[%clk 0:01:43.2]} 29... f6 {[%clk 0:00:27.2]} 30. f4 {[%clk 0:01:42.1]}
30... Kf7 {[%clk 0:00:26.7]} 31. Bf3 {[%clk 0:01:29.1]} 31... Nc5 {[%clk
0:00:21.7]} 32. f5 {[%clk 0:01:22.5]} 32... Nd3 {[%clk 0:00:16.2]} 33. fxg6+
{[%clk 0:01:12.7]} 33... Kxg6 {[%clk 0:00:17.1]} 34. g4 {[%clk 0:00:57.5]} 34...
hxg4 {[%clk 0:00:16.5]} 35. Bxg4 {[%clk 0:00:57.8]} 35... Rd8 {[%clk 0:00:16.9]}
36. Bf5+ {[%clk 0:00:57]} 36... Kf7 {[%clk 0:00:15]} 37. Bb6 {[%clk 0:00:55.7]}
37... Rd6 {[%clk 0:00:13.4]} 38. Bc7 {[%clk 0:00:55.2]} 38... Rc6 {[%clk
0:00:13.8]} 39. Ba5 {[%clk 0:00:52.3]} 39... Ne5 {[%clk 0:00:13.4]} 40. Kf2
{[%clk 0:00:44.7]} 40... Rd6 {[%clk 0:00:13.2]} 41. Bb4 {[%clk 0:00:40.9]} 41...
Rd3 {[%clk 0:00:13.4]} 42. Ra1 {[%clk 0:00:40.8]} 42... Rf3+ {[%clk 0:00:13.4]}
43. Kg2 {[%clk 0:00:40.3]} 43... Rb3 {[%clk 0:00:13.2]} 44. Ra7+ {[%clk
0:00:39.9]} 44... Ke8 {[%clk 0:00:13.5]} 45. Bd6 {[%clk 0:00:36]} 45... Rb2+
{[%clk 0:00:11.4]} 46. Kg3 {[%clk 0:00:35.6]} 46... Rb3+ {[%clk 0:00:10.5]} 47.
Kh4 {[%clk 0:00:29.4]} 47... Nf3+ {[%clk 0:00:10.5]} 48. Kh5 {[%clk 0:00:29.4]}
48... Bf7+ {[%clk 0:00:10.3]} 49. Kh6 {[%clk 0:00:28.4]} 49... Bc4 {[%clk
0:00:04.2]} 50. Kg7 {[%clk 0:00:25.9]} 1-0

[Event "*** SCC Grand Prix: Titled Tuesday Blitz"]
[Site "Chess.com"]
[Date "2020.06.02"]
[Round "8"]
[White "themind1hunter"]
[Black "GMTalks_Youtube"]
[Result "1-0"]
[WhiteElo "2536"]
[BlackElo "2664"]
[TimeControl "180+1"]
[EndTime "11:37:03 PDT"]
[Termination "themind1hunter won on time"]

1. e4 {[%clk 0:03:00.9]} 1... e5 {[%clk 0:02:59.5]} 2. Nf3 {[%clk 0:03:00.2]}
2... Nc6 {[%clk 0:02:59.6]} 3. Bb5 {[%clk 0:03:00]} 3... a6 {[%clk 0:02:59.3]}
4. Ba4 {[%clk 0:02:59.9]} 4... Nf6 {[%clk 0:02:59]} 5. O-O {[%clk 0:03:00]} 5...
Be7 {[%clk 0:02:59]} 6. Re1 {[%clk 0:02:59.3]} 6... b5 {[%clk 0:02:58.5]} 7. Bb3
{[%clk 0:02:59.9]} 7... O-O {[%clk 0:02:59]} 8. c3 {[%clk 0:03:00.5]} 8... d5
{[%clk 0:02:58.5]} 9. exd5 {[%clk 0:02:59.3]} 9... Nxd5 {[%clk 0:02:58.5]} 10.
Nxe5 {[%clk 0:03:00.2]} 10... Nxe5 {[%clk 0:02:58.6]} 11. Rxe5 {[%clk
0:03:01.1]} 11... c6 {[%clk 0:02:59]} 12. d3 {[%clk 0:03:02]} 12... Bd6 {[%clk
0:02:53.5]} 13. Re1 {[%clk 0:03:02.9]} 13... Bf5 {[%clk 0:02:51.1]} 14. Qf3
{[%clk 0:03:02.1]} 14... Bg6 {[%clk 0:02:50.8]} 15. g3 {[%clk 0:03:00.6]} 15...
Qd7 {[%clk 0:02:19.2]} 16. Nd2 {[%clk 0:02:15]} 16... Rae8 {[%clk 0:02:11.8]}
17. Rxe8 {[%clk 0:01:09.6]} 17... Rxe8 {[%clk 0:02:09.3]} 18. Kg2 {[%clk
0:01:10]} 18... Nf6 {[%clk 0:02:01.1]} 19. h3 {[%clk 0:01:01.2]} 19... h5 {[%clk
0:01:50.4]} 20. Nf1 {[%clk 0:00:59.4]} 20... Bf5 {[%clk 0:01:49.9]} 21. Bg5
{[%clk 0:00:48.6]} 21... Bxh3+ {[%clk 0:01:49]} 22. Kg1 {[%clk 0:00:45.2]} 22...
Bg4 {[%clk 0:01:31.9]} 23. Qg2 {[%clk 0:00:32.1]} 23... Qf5 {[%clk 0:01:08.7]}
24. Bxf6 {[%clk 0:00:21.8]} 24... Qxf6 {[%clk 0:01:07.8]} 25. Bd1 {[%clk
0:00:14.6]} 25... Re1 {[%clk 0:01:00.9]} 26. Bxg4 {[%clk 0:00:09.2]} 26... Rxa1
{[%clk 0:01:00.4]} 27. Bxh5 {[%clk 0:00:09.3]} 27... g6 {[%clk 0:00:58.7]} 28.
Bf3 {[%clk 0:00:08.5]} 28... c5 {[%clk 0:00:57.6]} 29. Kh2 {[%clk 0:00:06.3]}
29... Qh8+ {[%clk 0:00:53.5]} 30. Kg1 {[%clk 0:00:04]} 30... Qh6 {[%clk
0:00:53.2]} 31. Bd5 {[%clk 0:00:03.5]} 31... Qc1 {[%clk 0:00:47.6]} 32. d4
{[%clk 0:00:03.3]} 32... cxd4 {[%clk 0:00:45.1]} 33. cxd4 {[%clk 0:00:04.2]}
33... Qd1 {[%clk 0:00:42.5]} 34. Bb3 {[%clk 0:00:03.9]} 34... Qxd4 {[%clk
0:00:39.7]} 35. Qf3 {[%clk 0:00:03.4]} 35... Qg7 {[%clk 0:00:31.9]} 36. Kg2
{[%clk 0:00:03.1]} 36... Re1 {[%clk 0:00:22.1]} 37. Ne3 {[%clk 0:00:03.5]} 37...
Be5 {[%clk 0:00:17.7]} 38. Ng4 {[%clk 0:00:02.4]} 38... Bxb2 {[%clk 0:00:14]}
39. Bxf7+ {[%clk 0:00:02.8]} 39... Kh7 {[%clk 0:00:10.8]} 40. Bb3 {[%clk
0:00:03.3]} 40... Qe7 {[%clk 0:00:03.4]} 41. Ne3 {[%clk 0:00:03.3]} 1-0

[Event "*** SCC Grand Prix: Titled Tuesday Blitz"]
[Site "Chess.com"]
[Date "2020.06.02"]
[Round "8"]
[White "Anton_Demchenko"]
[Black "Mazetovic"]
[Result "0-1"]
[WhiteElo "2819"]
[BlackElo "2661"]
[TimeControl "180+1"]
[EndTime "11:37:04 PDT"]
[Termination "Mazetovic won by checkmate"]

1. d4 {[%clk 0:03:00.9]} 1... Nf6 {[%clk 0:02:59.7]} 2. Nf3 {[%clk 0:03:01.2]}
2... g6 {[%clk 0:03:00]} 3. Bf4 {[%clk 0:03:01.4]} 3... Bg7 {[%clk 0:02:59.8]}
4. c3 {[%clk 0:03:02]} 4... O-O {[%clk 0:02:59.7]} 5. Nbd2 {[%clk 0:03:02.5]}
5... d6 {[%clk 0:02:56.9]} 6. e4 {[%clk 0:03:02.9]} 6... c5 {[%clk 0:02:55.8]}
7. dxc5 {[%clk 0:03:02.5]} 7... dxc5 {[%clk 0:02:56.2]} 8. h3 {[%clk 0:03:03.2]}
8... Nc6 {[%clk 0:02:56.5]} 9. Qc2 {[%clk 0:03:03.2]} 9... Nd7 {[%clk
0:02:45.5]} 10. Be2 {[%clk 0:02:59.3]} 10... Nde5 {[%clk 0:02:45]} 11. O-O
{[%clk 0:02:56.5]} 11... Qc7 {[%clk 0:02:42.2]} 12. Be3 {[%clk 0:02:51.8]} 12...
b6 {[%clk 0:02:36.6]} 13. Nxe5 {[%clk 0:02:51.8]} 13... Nxe5 {[%clk 0:02:32.2]}
14. f4 {[%clk 0:02:51.9]} 14... Nc6 {[%clk 0:02:30.8]} 15. Nf3 {[%clk
0:02:39.6]} 15... Bb7 {[%clk 0:02:25.5]} 16. Rae1 {[%clk 0:02:26.3]} 16... Rac8
{[%clk 0:02:24.7]} 17. Bc1 {[%clk 0:02:19.5]} 17... Rfd8 {[%clk 0:02:21.1]} 18.
Bd1 {[%clk 0:02:04]} 18... Ba6 {[%clk 0:02:19.5]} 19. Be2 {[%clk 0:02:02.6]}
19... Bxe2 {[%clk 0:02:10.8]} 20. Qxe2 {[%clk 0:02:03.5]} 20... Qd7 {[%clk
0:02:03.7]} 21. Qf2 {[%clk 0:01:58.8]} 21... Qe6 {[%clk 0:01:51]} 22. a3 {[%clk
0:01:54.5]} 22... Rd3 {[%clk 0:01:48.5]} 23. Qh4 {[%clk 0:01:53.6]} 23... Qd7
{[%clk 0:01:34.9]} 24. f5 {[%clk 0:01:46.4]} 24... Ne5 {[%clk 0:01:34.2]} 25.
Nxe5 {[%clk 0:00:41.8]} 25... Bxe5 {[%clk 0:01:32.7]} 26. Bf4 {[%clk 0:00:42.1]}
26... Bxf4 {[%clk 0:01:25.5]} 27. Qxf4 {[%clk 0:00:42]} 27... Rf8 {[%clk
0:01:06.2]} 28. h4 {[%clk 0:00:42]} 28... Qd6 {[%clk 0:00:51.5]} 29. e5 {[%clk
0:00:42.1]} 29... Qd5 {[%clk 0:00:51.6]} 30. h5 {[%clk 0:00:40.2]} 30... gxf5
{[%clk 0:00:48.8]} 31. Qg5+ {[%clk 0:00:34.3]} 31... Kh8 {[%clk 0:00:48.6]} 32.
Qxe7 {[%clk 0:00:29.7]} 32... Rg8 {[%clk 0:00:28.3]} 33. Qf6+ {[%clk 0:00:29.7]}
33... Rg7 {[%clk 0:00:28.7]} 34. Rf2 {[%clk 0:00:30.1]} 34... Rg3 {[%clk
0:00:25.4]} 35. Ree2 {[%clk 0:00:18.4]} 35... Qd1+ {[%clk 0:00:24.7]} 36. Kh2
{[%clk 0:00:18.9]} 36... Rg5 {[%clk 0:00:23.8]} 37. Qh6 {[%clk 0:00:09.9]} 37...
Rg4 {[%clk 0:00:21.6]} 38. Qf6 {[%clk 0:00:04.6]} 38... Rg5 {[%clk 0:00:14.8]}
39. Qh6 {[%clk 0:00:03.4]} 39... Qd8 {[%clk 0:00:14.3]} 40. e6 {[%clk
0:00:02.3]} 40... fxe6 {[%clk 0:00:13.9]} 41. Rxe6 {[%clk 0:00:01.8]} 41... Rg4
{[%clk 0:00:12.3]} 42. Qf6 {[%clk 0:00:02.1]} 42... Rh4+ {[%clk 0:00:11.9]} 43.
Kg1 {[%clk 0:00:02.6]} 43... Qd1+ {[%clk 0:00:10.8]} 44. Rf1 {[%clk 0:00:03.1]}
44... Rh1+ {[%clk 0:00:09.9]} 45. Kxh1 {[%clk 0:00:02.3]} 45... Qxf1+ {[%clk
0:00:10.1]} 46. Kh2 {[%clk 0:00:03.2]} 46... Qxg2# {[%clk 0:00:10.8]} 0-1

[Event "*** SCC Grand Prix: Titled Tuesday Blitz"]
[Site "Chess.com"]
[Date "2020.06.02"]
[Round "8"]
[White "ega2006"]
[Black "Quiet_Desperation"]
[Result "0-1"]
[WhiteElo "2363"]
[BlackElo "2112"]
[TimeControl "180+1"]
[EndTime "11:37:04 PDT"]
[Termination "Quiet_Desperation won by resignation"]

1. e4 {[%clk 0:03:00.9]} 1... e6 {[%clk 0:02:59.7]} 2. d4 {[%clk 0:02:58]} 2...
d5 {[%clk 0:02:59.5]} 3. Nc3 {[%clk 0:02:57.7]} 3... Bb4 {[%clk 0:02:46.5]} 4.
e5 {[%clk 0:02:56.5]} 4... c5 {[%clk 0:02:37]} 5. Bd2 {[%clk 0:02:44.1]} 5...
Nh6 {[%clk 0:02:26.3]} 6. Nb5 {[%clk 0:02:35.9]} 6... Bxd2+ {[%clk 0:02:17.8]}
7. Qxd2 {[%clk 0:02:36.8]} 7... O-O {[%clk 0:02:13.3]} 8. f4 {[%clk 0:02:36.2]}
8... Nc6 {[%clk 0:02:10.9]} 9. Nf3 {[%clk 0:02:35.1]} 9... a6 {[%clk 0:02:07.5]}
10. Nd6 {[%clk 0:02:34.8]} 10... f6 {[%clk 0:02:05.4]} 11. dxc5 {[%clk
0:02:29.3]} 11... fxe5 {[%clk 0:01:52.4]} 12. fxe5 {[%clk 0:02:28.4]} 12... b6
{[%clk 0:01:50]} 13. cxb6 {[%clk 0:02:12.6]} 13... Qxb6 {[%clk 0:01:43.7]} 14.
Bd3 {[%clk 0:02:13]} 14... Rxf3 {[%clk 0:01:24.6]} 15. gxf3 {[%clk 0:02:11.9]}
15... Nxe5 {[%clk 0:01:24.7]} 16. O-O-O {[%clk 0:02:05.1]} 16... Qxd6 {[%clk
0:01:23.3]} 17. Rhg1 {[%clk 0:01:59.3]} 17... Nf5 {[%clk 0:01:10.8]} 18. Bxf5
{[%clk 0:01:58.2]} 18... exf5 {[%clk 0:01:10.7]} 19. Qxd5+ {[%clk 0:01:56.8]}
19... Qxd5 {[%clk 0:01:10.8]} 20. Rxd5 {[%clk 0:01:57.7]} 20... Nxf3 {[%clk
0:01:06.8]} 21. Rf1 {[%clk 0:01:43.2]} 21... Nxh2 {[%clk 0:00:49.5]} 22. Re1
{[%clk 0:01:39.6]} 22... Bb7 {[%clk 0:00:36]} 23. Rd7 {[%clk 0:01:38]} 23... Be4
{[%clk 0:00:35.1]} 24. Red1 {[%clk 0:01:32.8]} 24... Rc8 {[%clk 0:00:31.4]} 25.
c3 {[%clk 0:01:32.4]} 25... Ng4 {[%clk 0:00:22.9]} 26. Ra7 {[%clk 0:01:29.1]}
26... Kh8 {[%clk 0:00:14.6]} 27. Rdd7 {[%clk 0:01:28.1]} 27... Rg8 {[%clk
0:00:14.3]} 28. c4 {[%clk 0:01:21.2]} 28... h5 {[%clk 0:00:14.1]} 29. Rxa6
{[%clk 0:01:14]} 29... h4 {[%clk 0:00:12.6]} 30. Ra3 {[%clk 0:01:14.5]} 30... f4
{[%clk 0:00:07.9]} 31. Rd4 {[%clk 0:01:13.5]} 31... Re8 {[%clk 0:00:07.8]} 32.
Rh3 {[%clk 0:01:00.1]} 32... g5 {[%clk 0:00:06.5]} 33. Rd1 {[%clk 0:00:15.7]}
33... f3 {[%clk 0:00:06.6]} 34. c5 {[%clk 0:00:16]} 34... Nf2 {[%clk 0:00:05.5]}
35. Rh2 {[%clk 0:00:12.4]} 35... Nxd1 {[%clk 0:00:05.4]} 36. Kxd1 {[%clk
0:00:13.3]} 36... Kg7 {[%clk 0:00:04.8]} 37. b4 {[%clk 0:00:12.6]} 37... Kg6
{[%clk 0:00:05]} 38. b5 {[%clk 0:00:12.4]} 38... Kh5 {[%clk 0:00:05.2]} 39. c6
{[%clk 0:00:12.5]} 39... g4 {[%clk 0:00:05]} 40. c7 {[%clk 0:00:09.4]} 40... g3
{[%clk 0:00:04.4]} 41. Rd2 {[%clk 0:00:08.5]} 41... f2 {[%clk 0:00:04.7]} 42.
Ke2 {[%clk 0:00:06.8]} 42... Bd3+ {[%clk 0:00:03.1]} 43. Kxd3 {[%clk 0:00:06]}
43... f1=Q+ {[%clk 0:00:03.6]} 0-1